{"text_format":"1","workbook":"xlsx","n_sheets":3,"sheets":["Arkusz1","Arkusz2","Arkusz3"],"not_rendered":{"charts":0,"images":0,"macros":0,"external_links":0,"defined_names":2,"comments":0,"pivot_tables":0},"unopened":[],"bounds":{"document_bytes":16777216,"sheet_cells":100000,"rows_first":2000,"rows_last":500,"rows_between":2000,"halvings":0,"cell_chars":16384,"cell_head_chars":4096},"cells_cut":0,"cells_raw":0,"read":"whole","date_system":"1900"}

{"sheet":"Arkusz1","index":0,"n_rows":48,"n_cols":15,"rows_kept":48,"cut":false,"hidden":false,"merged":[[0,9,0,12],[4,5,4,8],[4,9,4,12],[2,0,2,12],[5,5,6,5],[5,6,5,8],[5,9,6,9],[5,10,5,12],[4,0,6,0],[4,1,6,1],[4,2,6,2],[4,3,6,3],[4,4,6,4]]}
[null,null,null,null,null,null,null,null,null,"Załącznik nr 4 do uchwały nr IX/58/2019 \nz dnia 23 maja 2019 r. zmieniającej uchwałę\n nr III/29/2018 z dnia 18 grudnia 2018 r.\n w sprawie uchwały budżetowej na rok 2019"]
[]
["Zestawienie planowanych kwot dotacji udzielanych z budżetu w 2019 roku jednostkom sektora finansów publicznych \ni jednostkom spoza sektora finansów publicznych"]
[]
["Lp.","Dział","Rozdział","Jednostka/ kategoria jednostek otrzymująca dotacje","Nazwa zadania","Dotacje dla jednostek sektora finansów publicznych",null,null,null,"Dotacje dla jednostek spoza sektora finansów publicznych"]
[null,null,null,null,null,"Razem","w tym:",null,null,"Razem","w tym:"]
[null,null,null,null,null,null,"Dotacje przedmiotowe","Dotacje podmiotowe","Dotacje celowe",null,"Dotacje przedmiotowe","Dotacje podmiotowe","Dotacje celowe"]
["I"]
[1,630,63095,"Stowarzyszenia lub inne organizacje typu non profit","Realizacja zadań z zakresu turystyki i krajoznawstwa",{"$f":"SUM(G9:I9)","v":0},null,null,null,{"$f":"SUM(K9:M9)","v":10000},null,null,10000]
[2,710,71095,"Stowarzyszenia lub inne organizacje typu non profit","Realizacja zadań z zakresu działalności wspomagającej rozwój gospodarczy, w tym rozwój przedsiębiorczości",{"$f":"SUM(G10:I10)","v":0},null,null,null,{"$f":"SUM(K10:M10)","v":12000},null,null,12000]
[3,754,75412,"Stowarzyszenia OSP","Zakup umundurowania i sprzętu dla jednostek OSP",{"$f":"SUM(G11:I11)","v":0},null,null,null,{"$f":"SUM(K11:M11)","v":20000},null,null,20000]
[4,801,80104,"Gmina Międzychód","Refundacja kosztów dotacji na dziecko uczęszczające do niepublicznego przedszkola w gminie Międzychód",{"$f":"SUM(G12:I12)","v":55858},null,null,55858,{"$f":"SUM(K12:M12)","v":0}]
[5,801,80195,"Stowarzyszenia lub inne organizacje typu non profit","Realizacja zadań z zakresu działalności wspomagającej rozwój wspólnot i społeczności lokalnych",0,null,null,null,6000,null,null,6000]
[6,851,85195,"Stowarzyszenia lub inne organizacje typu non profit","Rehabilitacja osób niepełnosprawnych",0,null,null,null,10000,null,null,10000]
[7,852,85230,"Stowarzyszenia lub inne organizacje typu non profit","Udzielenie osobom uprawnionym posiłku w ramach programu wieloletniego \"Pomoc państwa w zakresie dożywiania\"",{"$f":"SUM(G15:I15)","v":0},null,null,null,{"$f":"SUM(K15:M15)","v":200000},null,null,200000]
[8,852,85232,"Stowarzyszenia lub inne organizacje typu non profit","Integracja i reintegracja zawodowa i społeczna osób zagrożonych wykluczeniem społecznym",{"$f":"SUM(G16:I16)","v":0},null,null,null,{"$f":"SUM(K16:M16)","v":30000},null,30000]
[9,852,85295,"Stowarzyszenie \"Wieś bez Barier\" Chorzępowo","Realizacja projektu WRPO \"Wsparcie osób niesamodzielnych i niepełnosprawnych z terenu gminy Sieraków\" - jako partner projektu",{"$f":"SUM(G17:I17)","v":0},null,null,null,{"$f":"SUM(K17:M17)","v":309688},null,null,309688]
[10,852,85295,"Stowarzyszenia lub inne organizacje typu non profit","Prowadzenie Dziennego Domu \"Senior+\"",0,null,null,null,114000,null,null,114000]
[11,853,85311,"Powiat Międzychodzki","Dofinansowanie dowozu osób niepełnosprawnych z Gminy Sieraków na Warsztaty Terapii Zajęciowej w Kwilczu oraz wydatki związane z organizacją zajęć i wyposażenie WTZ",18000,null,null,18000,0]
[12,853,85311,"Gmina Chrzypsko Wielkie","Dofinansowanie dowozu osób niepełnosprawnych z Gminy Sieraków do Środowiskowego Domu Samopomocy w Chrzypsku Wielkim",{"$f":"SUM(G20:I20)","v":11900},null,null,11900,{"$f":"SUM(K20:M20)","v":0}]
[13,853,85395,"Stowarzyszenia lub inne organizacje typu non profit","Działalność za rzecz osób w wieku emerytalnym",{"$f":"SUM(G21:I21)","v":0},null,null,null,{"$f":"SUM(K21:M21)","v":14000},null,null,14000]
[14,854,85412,"Stowarzyszenia lub inne organizacje typu non profit","Zadania z zakresu działalności na rzecz dzieci i młodzieży, w tym wypoczynek dzieci i młodzieży",{"$f":"SUM(G22:I22)","v":0},null,null,null,{"$f":"SUM(K22:M22)","v":4000},null,null,4000]
[15,900,90026,"Powiat Międzychodzki","Usuwanie azbestu (pomoc finansowa)",{"$f":"SUM(G23:I23)","v":14000},null,null,14000,{"$f":"SUM(K23:M23)","v":0}]
[16,921,92105,"Stowarzyszenia lub inne organizacje typu non profit","Wspieranie zadań z zakresu kultury",0,null,null,null,64000,null,null,64000]
[17,921,92109,"Sierakowski Ośrodek Kultury","Działalność Ośrodka oraz inne zadania przekazane do realizacji",862000,null,862000,null,0]
[18,921,92109,"Sierakowski Ośrodek Kultury","Zakup płotów zaporowych",15805.5,null,null,15805.5,0]
[19,921,92116,"Biblioteka Publiczna","Działalność Biblioteki",365210,null,365210,null,0]
[20,921,92118,"Powiat Międzychodzki","Organizacja przez Muzeum Zamek Opalińskich imprez propagujących historię i kulturę regionu",25000,null,null,25000,0]
[21,921,92118,"Powiat Międzychodzki","Dofinansowanie badań archeologicznych związanych z historia miasta i gminy Sieraków",5000,null,null,5000,0]
[22,921,92120,"Właściciele zabytków wpisanych do rejestru zabytków","Konserwacja i ochrona zabytków",0,null,null,null,100000,null,null,100000]
[23,926,92601,"Ośrodek Sportu i Rekreacji","Funkcjonowanie boisk sportowych Orlik 2012",{"$f":"SUM(G31:I31)","v":67000},67000,null,null,{"$f":"SUM(K31:M31)","v":0}]
[24,926,92601,"Ośrodek Sportu i Rekreacji","Funkcjonowanie hali sportowej w Sierakowie",{"$f":"SUM(G32:I32)","v":259000},259000,null,null,{"$f":"SUM(K32:M32)","v":0}]
[25,926,92605,"Stowarzyszenia lub inne organizacje typu non profit","Wspieranie i upowszechnianie kultury fizycznej i sportu",0,null,null,null,323500,null,null,323500]
[26,926,92695,"Ośrodek Sportu i Rekreacji","Organizacja cyklu turniejów piłki plażowej, siatkowej i nożnej oraz popularyzacja tych sportów",12000,12000,null,null,0]
[27,926,92695,"Ośrodek Sportu i Rekreacji","Zapewnienie czystości, ładu i porządku na terenach rekreacyjnych, obiektach sportowych i ciągach komunikacyjnych przy jez. Jaroszewskim",{"$f":"SUM(G35:I35)","v":135000},135000,null,null,{"$f":"SUM(K35:M35)","v":0}]
[null,null,null,"Razem dotacje bieżące:",null,{"$f":"SUM(F9:F35)","v":1845773.5},473000,1227210,145563.5,1217188,0,30000,1187188,null,{"$f":"SUM(F36,J36)","v":3062961.5}]
["II","DOTACJE INWESTYCYJNE"]
[1,630,63095,"Stowarzyszenia lub inne organizacje typu non profit","Dofinansowanie realizacji zadań inwestycyjnych z zakresu turystyki i krajoznawstwa",{"$f":"SUM(G38:I38)","v":0},null,null,null,{"$f":"SUM(K38:M38)","v":58000},null,null,58000]
[2,754,75412,"Stowarzyszenie OSP Chorzępowo","Dofinansowanie zakupu samochodu ratowniczo-gaśniczego dla OSP Chorzępowo",0,null,null,null,22000,null,null,22000]
[3,851,85111,"Powiat Międzychodzki","Pomoc finansowa - dofinansowanie rozbudowy i wyposażenia szpitala w Międzychodzie",{"$f":"SUM(G40:I40)","v":30000},null,null,30000,0]
[4,900,90019,"Jednostki niezaliczane do sektora finansów publicznych","Dofinansowanie realizacji przedsięwzięć służących ochronie środowiska",{"$f":"SUM(G41:I41)","v":0},null,null,null,{"$f":"SUM(K41:M41)","v":100000},null,null,100000]
[5,921,92118,"Powiat Międzychodzki","Dofinansowanie zakupu eksponatów dla Muzeum Zamek Opalińskich",{"$f":"SUM(G42:I42)","v":5000},null,null,5000,{"$f":"SUM(K42:M42)","v":0}]
[6,926,92695,"Ośrodek Sportu i Rekreacji","Przebudowa domków",{"$f":"SUM(G43:I43)","v":120000},null,null,120000,{"$f":"SUM(K43:M43)","v":0}]
[null,null,null,"Razem dotacje inwestycyjne:",null,{"$f":"SUM(F38:F43)","v":155000},{"$f":"SUM(G38:G43)","v":0},{"$f":"SUM(H38:H43)","v":0},155000,{"$f":"SUM(J38:J43)","v":180000},{"$f":"SUM(K38:K43)","v":0},0,180000]
[null,null,null,"OGÓŁEM DOTACJE:",null,{"$f":"SUM(F36,F44)","v":2000773.5},473000,1227210,300563.5,1397188,0,30000,1367188]
["Ogółem dotacje:",null,null,null,"przedmiotowe",{"$f":"G45+K45","v":473000}]
[null,null,null,null,"podmiotowe",{"$f":"H45+L45","v":1257210}]
[null,null,null,null,"celowe",{"$f":"I45+M45","v":1667751.5}]

{"sheet":"Arkusz2","index":1,"n_rows":0,"n_cols":0,"rows_kept":0,"cut":false,"hidden":false,"merged":[]}

{"sheet":"Arkusz3","index":2,"n_rows":0,"n_cols":0,"rows_kept":0,"cut":false,"hidden":false,"merged":[]}